bitfinex/quotes_BTCUSD_20220213
["timestamp","ask_amount","ask_price","bid_price","bid_amount"]
[1644792571833,0.05903,42380.0,42377.0,0.045]
[1644792572431,0.05903,42379.0,42377.0,0.104027]
[1644792573332,0.05950151,42380.0,42377.0,0.104027]
[1644792573933,0.05950151,42380.0,42377.0,0.045]
[1644792574134,0.11852951,42380.0,42377.0,0.045]
[1644792574375,0.059028,42380.0,42377.0,0.045]
[1644792575373,0.05903,42379.0,42377.0,0.045]
[1644792578820,0.05903,42379.0,42377.0,0.04493578]
[1644792580627,0.05903,42379.0,42377.0,0.10396278]
[1644792581889,0.16103508,42379.0,42377.0,0.10396278]
[1644792582088,0.05903,42379.0,42377.0,0.10396278]
[1644792583690,0.05903,42379.0,42377.0,0.10406278]
[1644792583988,0.05903,42379.0,42377.0,0.059127]
[1644792584188,0.05903,42379.0,42377.0,0.109127]
[1644792584590,0.05903,42379.0,42377.0,0.059127]
[1644792584794,0.05903,42379.0,42377.0,0.109127]
[1644792585192,0.05903,42379.0,42377.0,0.059127]
[1644792585392,0.05903,42379.0,42377.0,0.109127]
[1644792585623,0.05903,42379.0,42377.0,0.059127]
[1644792585823,0.05903,42379.0,42377.0,0.109127]
[1644792586823,0.05903,42379.0,42377.0,0.059127]
[1644792587022,0.05903,42379.0,42377.0,0.109127]
[1644792587223,0.05903,42379.0,42377.0,0.059127]
[1644792587427,0.05903,42379.0,42377.0,0.109127]
[1644792587626,0.05903,42379.0,42377.0,0.0501]
[1644792587825,0.05903,42379.0,42377.0,0.0001]
[1644792589026,0.05903,42379.0,42377.0,0.059127]
[1644792589471,0.05903,42379.0,42377.0,0.109127]
[1644792590074,0.05903,42379.0,42377.0,0.059127]
[1644792590370,0.05903,42379.0,42377.0,0.109127]
[1644792590672,0.05903,42379.0,42377.0,0.059127]
[1644792590869,0.05903,42379.0,42377.0,0.109127]
[1644792591671,0.05903,42379.0,42377.0,0.059127]
[1644792591872,0.05903,42379.0,42377.0,0.0501]
[1644792592073,0.05903,42379.0,42377.0,0.0001]
[1644792592874,0.00073374,42380.0,42377.0,0.059127]
[1644792593120,0.00073374,42380.0,42377.0,0.109127]
[1644792593522,0.00025723,42380.0,42377.0,0.109127]
[1644792593720,0.00047651,42381.0,42377.0,0.109127]
[1644792594221,0.00047651,42381.0,42377.0,0.059127]
[1644792594420,0.059025,42380.0,42377.0,0.109127]
[1644792594621,0.05928223,42380.0,42377.0,0.109127]
[1644792594822,0.059025,42380.0,42377.0,0.059127]
[1644792595020,0.05928223,42380.0,42377.0,0.109127]
[1644792595420,0.05928223,42380.0,42377.0,0.059127]
[1644792595621,0.05928223,42380.0,42377.0,0.109127]
[1644792596023,0.118053,42380.0,42377.0,0.0001]
[1644792596223,0.05903,42379.0,42377.0,0.0001]
[1644792597774,0.05894373,42379.0,42377.0,0.0001]
[1644792599673,0.05840821,42379.0,42377.0,0.0001]
[1644792600721,0.39100927,42378.0,42377.0,0.0001]
[1644792601121,0.118067,42378.0,42377.0,0.0001]
[1644792603724,0.43492473,42378.0,42377.0,0.0001]
[1644792611127,0.165167,42378.0,42377.0,0.0001]
[1644792611776,0.165067,42378.0,42377.0,0.0001]
[1644792612378,0.10613,42378.0,42377.0,0.0001]
[1644792613979,0.38237824,42378.0,42377.0,0.0001]
[1644792614180,0.10613,42378.0,42377.0,0.0001]
[1644792616222,0.438072,42378.0,42377.0,0.0001]
[1644792616419,0.10613,42378.0,42377.0,0.0001]
[1644792616621,0.438072,42378.0,42377.0,0.0001]
[1644792617123,0.1651677,42378.0,42377.0,0.0001]
[1644792617522,0.4971097,42378.0,42377.0,0.0001]
[1644792617721,0.1651677,42378.0,42377.0,0.0001]
[1644792617930,0.4971097,42378.0,42377.0,0.0001]
[1644792618421,0.77656233,42378.0,42377.0,0.0001]
[1644792619023,0.71752463,42378.0,42377.0,0.0001]
[1644792619271,0.51890051,42378.0,42377.0,0.0001]
[1644792619470,0.71752463,42378.0,42377.0,0.0001]
[1644792619672,0.38558263,42378.0,42377.0,0.0001]
[1644792619877,0.71752463,42378.0,42377.0,0.0001]
[1644792620371,0.85084251,42378.0,42377.0,0.0001]
[1644792620574,0.71752463,42378.0,42377.0,0.0001]
[1644792620773,0.85084251,42378.0,42377.0,0.0001]
[1644792621176,0.71752463,42378.0,42377.0,0.0001]
[1644792621373,0.85084251,42378.0,42377.0,0.0001]
[1644792621573,0.71752463,42378.0,42377.0,0.0001]
[1644792621774,0.85084251,42378.0,42377.0,0.0001]
[1644792621974,0.71752463,42378.0,42377.0,0.0001]
[1644792622173,0.85084251,42378.0,42377.0,0.0001]
[1644792622375,0.71752463,42378.0,42377.0,0.0001]
[1644792622577,0.85084251,42378.0,42377.0,0.0001]
[1644792622774,0.71752463,42378.0,42377.0,0.0001]
[1644792625529,0.67042463,42378.0,42377.0,0.0001]
[1644792626769,0.67042463,42378.0,42377.0,0.00109101]
[1644792627871,0.67042463,42378.0,42377.0,0.0013192]
[1644792633223,0.67042463,42378.0,42377.0,0.00124662]
[1644792633426,0.33848263,42378.0,42377.0,0.00124662]
[1644792633626,0.390972,42378.0,42377.0,0.00124662]
[1644792633826,0.05903,42378.0,42377.0,0.00124662]
[1644792634031,0.390972,42378.0,42377.0,0.00124662]
[1644792635278,0.331942,42377.0,42376.0,0.21244134]
[1644792636079,0.62550348,42377.0,42376.0,0.21244134]
[1644792636279,0.67260348,42377.0,42376.0,0.21244134]
[1644792636779,0.379042,42377.0,42376.0,0.21244134]
[1644792637181,0.379042,42377.0,42376.0,0.26244134]
[1644792638325,0.67844347,42377.0,42376.0,0.26244134]
[1644792640529,0.72844347,42377.0,42376.0,0.26244134]
[1644792641632,0.72844347,42377.0,42376.0,0.21244134]
[1644792641879,0.67844347,42377.0,42376.0,0.21244134]
[1644792642875,0.67844347,42377.0,42376.0,0.26244134]
[1644792646225,0.67744347,42377.0,42376.0,0.26244134]
[1644792647429,0.67644347,42377.0,42376.0,0.26244134]
[1644792653227,0.377042,42377.0,42376.0,0.26244134]
[1644792659871,0.65684637,42377.0,42376.0,0.26244134]
[1644792668232,0.60974637,42377.0,42376.0,0.26244134]
[1644792669435,0.329942,42377.0,42376.0,0.26244134]
[1644792671037,0.329942,42377.0,42376.0,0.26233191]
[1644792681976,0.302799,42379.0,42376.0,0.26233191]
[1644792682176,0.30305767,42379.0,42376.0,0.26233191]
[1644792682576,0.33188,42377.0,42376.0,0.26233191]
[1644792689677,0.33188,42377.0,42376.0,0.26256059]
[1644792691925,0.05903,42378.0,42376.0,0.26256059]
[1644792692125,0.33188,42377.0,42376.0,0.32159559]
[1644792692325,0.33188,42377.0,42376.0,0.32136691]
[1644792692524,0.361829,42378.0,42376.0,0.32159559]
[1644792692725,0.361829,42378.0,42376.0,0.32136691]
[1644792693023,0.09213511,42377.0,42376.0,0.32136691]
[1644792693229,0.09213511,42377.0,42376.0,0.60424826]
[1644792693429,0.2499,42387.0,42376.0,0.60424826]
[1644792693430,0.00047552,42381.0,42376.0,0.60424826]
[1644792693629,0.00047552,42381.0,42377.0,0.109018]
[1644792693630,0.00025867,42379.0,42377.0,0.109018]
[1644792693829,0.00025867,42379.0,42378.0,0.63188]
[1644792694025,0.00047552,42381.0,42378.0,0.63188]
[1644792694289,0.00025867,42380.0,42379.0,0.33188]
[1644792694488,0.00025867,42383.0,42379.0,0.33188]
[1644792694788,0.00047554,42382.0,42379.0,0.39088971]
[1644792694989,0.00047554,42382.0,42379.0,0.16802371]
[1644792695189,0.00047554,42382.0,42379.0,0.28603971]
[1644792695386,0.00047554,42382.0,42380.0,0.059013]
[1644792695590,0.00025867,42385.0,42381.0,0.48774328]
[1644792695787,0.00047554,42383.0,42381.0,0.48774328]
[1644792695988,0.00047554,42383.0,42382.0,0.27055898]
[1644792696287,0.00047554,42383.0,42382.0,0.37956779]
[1644792696493,0.00047554,42383.0,42382.0,0.58198265]
[1644792696688,0.09585447,42392.0,42382.0,0.58198265]
[1644792696889,0.0955958,42392.0,42384.0,0.05901]
[1644792697092,0.00047554,42385.0,42384.0,0.05901]
[1644792697290,0.00047554,42385.0,42384.0,0.10901]
[1644792697689,0.00047554,42385.0,42384.0,0.36856195]
[1644792697890,0.00025867,42391.0,42384.0,0.36856195]
[1644792698126,0.09585447,42392.0,42384.0,0.10901]
[1644792698327,0.00047554,42387.0,42384.0,0.10901]
[1644792699128,0.00025867,42391.0,42384.0,0.10901]
[1644792699324,0.00025867,42392.0,42384.0,0.10901]
[1644792699525,0.00047554,42388.0,42384.0,0.10901]
[1644792699925,0.10620908,42388.0,42384.0,0.10901]
[1644792700228,0.0922649,42386.0,42384.0,0.05]
[1644792700625,0.00025867,42387.0,42384.0,0.10901]
[1644792701228,0.00047554,42388.0,42384.0,0.10901]
[1644792701631,0.00025867,42391.0,42384.0,0.10901]
[1644792701877,0.00047554,42388.0,42384.0,0.10901]
[1644792703178,0.00073421,42388.0,42384.0,0.10901]
[1644792703377,0.00047554,42388.0,42384.0,0.10901]
[1644792703776,0.05474221,42394.0,42384.0,0.10901]
[1644792704181,0.059006,42396.0,42384.0,0.16801698]
[1644792704382,0.33188,42395.0,42387.0,0.059006]
[1644792704577,0.33188,42395.0,42387.0,0.32577184]
[1644792704778,0.059006,42396.0,42387.0,0.37577184]
[1644792704978,0.33188,42395.0,42387.0,0.37577184]
[1644792705380,0.0999,42395.0,42387.0,0.37577184]
[1644792705627,0.059008,42394.0,42387.0,0.37577184]
[1644792706029,0.059008,42394.0,42389.0,0.059008]
[1644792706628,0.33188,42393.0,42389.0,0.059008]
[1644792706835,0.059006,42396.0,42389.0,0.29290287]
[1644792707028,0.01,42399.0,42389.0,0.29290287]
[1644792707428,0.01,42399.0,42389.0,0.55087076]
[1644792707629,0.01,42399.0,42390.0,0.058997]
[1644792707827,0.01,42399.0,42396.0,0.22149746]
[1644792708029,0.01,42399.0,42397.0,0.27219101]
[1644792708228,0.01,42399.0,42397.0,0.32219101]
[1644792708429,0.01,42399.0,42398.0,0.26974045]
[1644792708630,0.01,42399.0,42398.0,0.31974045]
[1644792711483,0.01,42399.0,42398.0,0.65162045]
[1644792711688,0.01,42399.0,42398.0,0.31974045]
[1644792712780,0.01,42399.0,42398.0,0.65162045]
[1644792713032,0.01,42399.0,42398.0,0.33188]
[1644792713428,0.01,42399.0,42398.0,0.38188]
[1644792713827,0.01,42399.0,42397.0,0.22697352]
[1644792714028,0.01,42399.0,42398.0,0.33188]
[1644792714229,0.01,42399.0,42398.0,0.38188]
[1644792714428,0.01,42399.0,42398.0,0.05]
[1644792714632,0.01,42399.0,42398.0,0.28759118]
[1644792714830,0.01,42399.0,42398.0,0.33759118]
[1644792715029,0.01,42399.0,42398.0,0.66947118]
[1644792715430,0.01,42399.0,42398.0,0.78743418]
[1644792715629,0.01,42399.0,42398.0,0.45555418]
[1644792716029,0.01,42399.0,42398.0,0.78743418]
[1644792717290,0.01,42399.0,42398.0,1.02743418]
[1644792717983,0.01,42399.0,42398.0,0.69555418]
[1644792718185,0.01,42399.0,42398.0,1.02743418]
[1644792720287,0.01,42399.0,42398.0,1.12743418]
[1644792720731,0.0021,42402.0,42399.0,0.01999999]
[1644792721028,0.0021,42402.0,42400.0,0.38188]
[1644792721029,0.00014289,42401.0,42400.0,0.38188]
[1644792721227,0.00014289,42401.0,42400.0,0.70167267]
[1644792721429,0.00014289,42401.0,42400.0,0.51979267]
[1644792721630,0.00014289,42401.0,42400.0,0.85167267]
[1644792721831,0.03,42403.0,42401.0,0.05]
[1644792722036,0.03,42403.0,42402.0,0.37898]
[1644792722334,0.03,42403.0,42402.0,0.587952]
[1644792722335,0.03014289,42403.0,42402.0,0.587952]
[1644792722531,0.03014289,42403.0,42402.0,0.887952]
[1644792722732,0.03014289,42403.0,42402.0,2.189952]
[1644792723131,0.03,42403.0,42402.0,2.189952]
[1644792724581,0.025,42403.0,42402.0,2.189952]
[1644792725380,0.025,42403.0,42402.0,0.937952]
[1644792726578,0.025,42403.0,42402.0,2.189952]
[1644792727879,0.025,42403.0,42402.0,0.937952]
[1644792728131,0.025,42403.0,42402.0,0.606072]
[1644792728330,0.025,42403.0,42402.0,0.937952]
[1644792728729,0.025,42403.0,42402.0,2.189952]
[1644792731629,0.025,42403.0,42402.0,0.937952]
[1644792732682,0.025,42403.0,42402.0,2.189952]
[1644792733480,0.02,42403.0,42402.0,2.189952]
[1644792733682,0.01024275,42409.0,42404.0,0.058972]
[1644792733881,0.01024275,42409.0,42405.0,0.69955269]
[1644792734081,0.01024275,42409.0,42406.0,0.05]
[1644792734281,0.01024275,42409.0,42407.0,0.33188]
[1644792734482,0.01024275,42409.0,42408.0,0.27206881]
[1644792735530,0.01024275,42409.0,42408.0,0.60394881]
[1644792735725,0.01024275,42409.0,42408.0,0.27206881]
[1644792736326,0.01024275,42409.0,42408.0,0.60394881]
[1644792736529,0.01024275,42409.0,42408.0,0.27206881]
[1644792736927,0.10194549,42409.0,42408.0,0.27206881]
[1644792737127,0.1122013,42409.0,42408.0,0.27206881]
[1644792739581,0.4911813,42409.0,42406.0,0.058972]
[1644792739778,0.09184331,42407.0,42406.0,0.058972]
[1644792739976,0.09976235,42406.0,42403.0,0.058996]
[1644792740175,0.09620266,42404.0,42403.0,0.058996]
[1644792740376,0.05734275,42409.0,42403.0,0.058996]
[1644792740678,0.55054774,42408.0,42403.0,0.058996]
[1644792740874,0.55054774,42408.0,42403.0,0.298996]
[1644792741276,0.058992,42406.0,42403.0,0.298996]
[1644792741477,0.33188,42405.0,42403.0,0.298996]
[1644792742578,0.31688,42405.0,42403.0,0.298996]
[1644792743029,0.30688,42405.0,42403.0,0.298996]
[1644792747079,0.058992,42406.0,42403.0,0.298996]
[1644792747479,0.00047362,42407.0,42403.0,0.298996]
[1644792747681,0.331752,42406.0,42403.0,0.298996]
[1644792747879,0.00047362,42407.0,42403.0,0.298996]
[1644792748280,0.331752,42406.0,42403.0,0.298996]
[1644792748485,0.17532575,42409.0,42404.0,0.0999]
[1644792748680,0.00047364,42407.0,42404.0,0.0999]
[1644792748880,0.00047364,42407.0,42404.0,0.108992]
[1644792749380,0.00047364,42407.0,42404.0,0.058992]
[1644792749579,0.277946,42408.0,42404.0,0.058992]
[1644792749884,0.058992,42406.0,42404.0,0.058992]
[1644792750082,0.331752,42405.0,42404.0,0.058992]
[1644792750281,0.331752,42405.0,42403.0,0.407978]
[1644792750529,0.00047364,42408.0,42403.0,0.407978]
[1644792750728,0.10462107,42406.0,42403.0,0.407978]
[1644792750927,0.0998387,42404.0,42403.0,0.407978]
[1644792751135,0.00047362,42407.0,42403.0,0.407978]
[1644792751730,0.05946062,42407.0,42403.0,0.407978]
[1644792751929,0.058987,42407.0,42403.0,0.407978]
[1644792752333,0.05946064,42407.0,42403.0,0.407978]
[1644792754278,0.00047364,42407.0,42403.0,0.407978]
[1644792754482,0.01024275,42409.0,42403.0,0.407978]
[1644792754677,0.00047364,42407.0,42403.0,0.407978]
[1644792755681,0.331752,42407.0,42403.0,0.407978]
[1644792755879,0.33222564,42407.0,42403.0,0.407978]
[1644792756078,0.331752,42406.0,42403.0,0.407978]
[1644792756282,0.00047364,42407.0,42403.0,0.407978]
[1644792756879,0.01024275,42409.0,42403.0,0.407978]
[1644792757081,0.00047364,42407.0,42403.0,0.407978]
[1644792757279,0.058987,42406.0,42403.0,0.407978]
[1644792758129,0.01024275,42409.0,42403.0,0.407978]
[1644792758330,0.00047363,42407.0,42403.0,0.66919333]
[1644792758529,0.00047363,42407.0,42404.0,0.390729]
[1644792758733,0.00047363,42407.0,42406.0,0.331752]
[1644792758930,0.00047363,42407.0,42406.0,0.27759574]
[1644792759127,0.00047363,42407.0,42406.0,0.32759574]
[1644792759329,0.01024275,42409.0,42406.0,0.32759574]
[1644792759529,0.01071639,42409.0,42406.0,0.32759574]
[1644792760130,0.01071639,42409.0,42406.0,0.38657374]
[1644792760430,0.01024275,42409.0,42406.0,0.38657374]
[1644792761330,0.10156471,42409.0,42406.0,0.38657374]
[1644792761533,0.10156471,42409.0,42407.0,0.331752]
[1644792764282,0.10156471,42409.0,42406.0,0.38657374]
[1644792764490,0.10156471,42409.0,42407.0,0.331752]
[1644792764681,0.10156471,42409.0,42406.0,0.108978]
[1644792764885,0.10156471,42409.0,42407.0,0.331752]
[1644792765082,0.10156471,42409.0,42406.0,0.108978]
[1644792765282,0.10156471,42409.0,42407.0,0.331752]
[1644792765527,0.10156471,42409.0,42406.0,0.108978]
[1644792765727,0.10156471,42409.0,42407.0,0.331752]
[1644792765928,6.868e-05,42407.0,42406.0,0.108978]
[1644792766133,6.868e-05,42407.0,42406.0,0.44073]
[1644792766932,6.868e-05,42407.0,42406.0,0.54073]
[1644792767134,6.868e-05,42407.0,42406.0,0.59073]
[1644792768533,6.868e-05,42407.0,42406.0,0.54073]
[1644792768730,6.868e-05,42407.0,42406.0,0.59073]
[1644792769131,6.868e-05,42407.0,42406.0,0.89727798]
[1644792770078,6.868e-05,42407.0,42406.0,0.84727798]
[1644792770477,0.09970362,42407.0,42406.0,0.84727798]
[1644792770878,0.09970362,42407.0,42406.0,0.84719855]
[1644792773631,6.868e-05,42407.0,42406.0,0.84719855]
[1644792773931,0.0915655,42407.0,42406.0,0.89719855]
[1644792774332,6.868e-05,42407.0,42406.0,0.89719855]
[1644792776782,6.868e-05,42407.0,42406.0,1.01513455]
[1644792781633,6.868e-05,42407.0,42406.0,0.70858657]
[1644792782735,6.868e-05,42407.0,42406.0,1.02526641]
[1644792783335,6.868e-05,42407.0,42406.0,0.70858657]
[1644792783736,6.868e-05,42407.0,42406.0,1.20858657]
[1644792784035,6.868e-05,42407.0,42406.0,0.70858657]
[1644792784286,0.01047364,42409.0,42407.0,0.05]
[1644792784488,0.01047364,42409.0,42408.0,0.331752]
[1644792784489,0.01,42409.0,42408.0,0.331752]
[1644792784688,0.01047364,42409.0,42408.0,0.381752]
[1644792784894,0.01047364,42409.0,42408.0,0.531752]
[1644792785387,0.01047364,42409.0,42408.0,0.59072]
[1644792785589,0.01,42409.0,42408.0,0.88956615]
[1644792785988,0.01,42409.0,42408.0,0.83059815]
[1644792786888,0.00993458,42409.0,42408.0,0.83059815]
[1644792797141,0.002,42414.0,42412.0,0.02759027]
[1644792797338,0.001,42414.0,42412.0,0.35934227]
[1644792797536,0.0019737,42417.0,42412.0,0.40934227]
[1644792797737,0.0001,42417.0,42414.0,0.381752]
[1644792797943,0.0001,42417.0,42414.0,0.481752]
[1644792798138,0.0001,42417.0,42415.0,0.331752]
[1644792798337,0.0001,42417.0,42415.0,0.431752]
[1644792799289,0.0001,42417.0,42416.0,0.331752]
[1644792799493,0.0001,42417.0,42416.0,0.381752]
[1644792799790,0.0001,42417.0,42416.0,0.481752]
[1644792807583,0.0001,42417.0,42416.0,0.721752]
[1644792813133,0.00118706,42418.0,42416.0,0.721752]
[1644792813334,0.09234498,42418.0,42416.0,0.721752]
[1644792813740,0.09234498,42418.0,42417.0,0.26005434]
[1644792814035,0.09234498,42418.0,42416.0,0.83967728]
[1644792817693,0.09234498,42418.0,42417.0,0.2614379]
[1644792817890,0.09234498,42418.0,42417.0,0.5931899]
[1644792818132,0.09234498,42418.0,42417.0,0.2614379]
[1644792818333,0.09234498,42418.0,42417.0,0.5931899]
[1644792818537,0.00118706,42418.0,42417.0,0.6931899]
[1644792818736,0.00118706,42418.0,42417.0,0.3614379]
[1644792819234,0.00118706,42418.0,42417.0,0.6931899]
[1644792820136,0.00118706,42418.0,42417.0,0.3614379]
[1644792820334,0.01105654,42419.0,42418.0,0.58254133]
[1644792820535,0.01105654,42419.0,42418.0,0.84636867]
[1644792820734,0.01105654,42419.0,42418.0,0.94636867]
[1644792821138,0.00136484,42419.0,42418.0,0.94636867]
[1644792821338,0.01683961,42420.0,42419.0,0.381752]
[1644792821544,0.01353961,42420.0,42419.0,0.381752]
[1644792821782,0.01306362,42420.0,42419.0,2.083752]
[1644792821983,0.01306362,42420.0,42419.0,1.783752]
[1644792822384,0.0031,42425.0,42421.0,1.583752]
[1644792822588,0.0021,42426.0,42421.0,1.583752]
[1644792822589,7.11e-06,42426.0,42423.0,0.390689]
[1644792822784,7.11e-06,42426.0,42423.0,0.540689]
[1644792822985,7.11e-06,42426.0,42424.0,0.331752]
[1644792823383,7.11e-06,42426.0,42425.0,0.331752]
[1644792823585,7.11e-06,42426.0,42425.0,0.381752]
[1644792823784,0.00700711,42429.0,42425.0,0.481752]
[1644792823985,0.00700711,42429.0,42428.0,0.331752]
[1644792824188,0.00700711,42429.0,42428.0,0.381752]
[1644792824383,0.00700711,42429.0,42428.0,0.531752]
[1644792824384,0.00714971,42429.0,42428.0,0.531752]
[1644792824785,0.00604971,42429.0,42428.0,0.831752]
[1644792825091,0.1165,42438.0,42435.0,0.15]
[1644792825092,0.001,42438.0,42435.0,0.15]
[1644792825287,0.001,42440.0,42438.0,0.05]
[1644792825548,0.001,42440.0,42438.0,1.980852]
[1644792825740,0.1009,42440.0,42438.0,1.980852]
[1644792826038,0.011,42440.0,42438.0,2.03410635]
[1644792826238,0.011,42440.0,42439.0,1.252]
[1644792826437,0.011,42440.0,42439.0,1.730852]
[1644792826638,0.011,42440.0,42439.0,1.3991]
[1644792827037,0.011,42440.0,42439.0,1.730852]
[1644792827239,0.001,42440.0,42439.0,1.730852]
[1644792827440,0.001,42440.0,42439.0,0.478852]
[1644792827642,0.001,42440.0,42439.0,1.730852]
[1644792827841,0.001,42440.0,42439.0,0.478852]
[1644792828543,0.001,42440.0,42439.0,1.730852]
[1644792828741,0.001,42440.0,42439.0,0.478852]
[1644792829591,0.001,42440.0,42439.0,1.730852]
[1644792829788,0.001,42440.0,42439.0,0.478852]
[1644792831391,0.001,42442.0,42440.0,0.002]
[1644792831690,0.00114388,42442.0,42441.0,0.331752]
[1644792831894,0.00114388,42442.0,42441.0,0.431752]
[1644792832290,0.00114388,42442.0,42441.0,0.69932461]
[1644792832491,0.001,42442.0,42441.0,0.69932461]
[1644792833334,0.001,42442.0,42441.0,0.431752]
[1644792834537,0.001,42442.0,42441.0,0.490675]
[1644792834738,0.001,42442.0,42441.0,0.76624447]
[1644792835338,0.05,42441.0,42434.0,0.03096296]
[1644792835539,0.15,42430.0,42428.0,0.00050644]
[1644792835739,0.2,42426.0,42422.0,0.0001]
[1644792835938,0.2,42426.0,42406.0,0.0589]
[1644792835939,0.43561071,42422.0,42406.0,0.0589]
[1644792836139,0.970588,42413.0,42407.0,2.66083618]
[1644792836338,0.331588,42407.0,42399.0,0.01999999]
[1644792836538,0.970588,42403.0,42399.0,0.01999999]
[1644792836792,0.14951034,42402.0,42384.0,0.0589]
[1644792836993,0.3,42407.0,42384.0,0.0589]
[1644792836994,0.42723149,42394.0,42384.0,0.0589]
[1644792837196,0.42763542,42388.0,42384.0,0.0589]
[1644792837393,0.05,42395.0,42381.0,0.01]
[1644792837394,0.589,42385.0,42381.0,0.01]
[1644792837593,0.05901551,42395.0,42381.0,0.01]
[1644792837594,0.10319993,42383.0,42381.0,0.01]
[1644792837792,0.6361,42382.0,42381.0,0.1099]
[1644792838391,0.6361,42382.0,42381.0,0.01]
[1644792838793,0.6361,42382.0,42381.0,0.01022984]
[1644792838994,0.6361,42382.0,42381.0,0.00963197]
[1644792839194,0.6361,42382.0,42381.0,0.01925813]
[1644792844288,0.0471,42382.0,42381.0,0.01925813]
[1644792846093,0.0471,42382.0,42381.0,0.00940213]
[1644792846789,0.0471,42382.0,42381.0,0.01925813]
[1644792847190,0.0471,42382.0,42381.0,0.00940213]
[1644792847593,0.0471,42382.0,42381.0,0.01925813]
[1644792848043,0.0471,42382.0,42381.0,0.00940213]
[1644792853288,0.106121,42382.0,42381.0,0.00940213]
[1644792853687,0.106121,42382.0,42379.0,0.00050432]
[1644792853688,0.0090997,42379.0,42376.0,0.0001]
[1644792854690,0.0090997,42379.0,42376.0,0.00033309]
[1644792854889,0.0090997,42379.0,42376.0,0.0001]
[1644792855293,0.059025,42378.0,42376.0,0.0001]
[1644792855737,0.059025,42378.0,42376.0,0.00033309]
[1644792855936,0.059025,42378.0,42376.0,0.0001]
[1644792856135,0.059025,42378.0,42376.0,0.2401]
[1644792856738,0.33015973,42378.0,42376.0,0.2401]
[1644792856938,0.33015973,42378.0,42376.0,0.24033309]
[1644792856939,0.67008231,42377.0,42376.0,0.24033309]
[1644792857143,0.71718231,42377.0,42376.0,0.24033309]
[1644792857338,0.428688,42377.0,42376.0,0.24033309]
[1644792857537,0.428688,42377.0,42376.0,0.09299295]
[1644792857940,0.428688,42377.0,42376.0,0.09275986]
[1644792858338,0.605814,42377.0,42376.0,0.09275986]
[1644792859140,0.91797928,42377.0,42376.0,0.09275986]
[1644792859390,1.07863535,42377.0,42376.0,0.09275986]
[1644792859688,0.91797928,42377.0,42376.0,0.09275986]
[1644792859888,1.19704735,42377.0,42376.0,0.09275986]
[1644792860190,2.44904735,42377.0,42376.0,0.09275986]
[1644792860388,2.49904735,42377.0,42376.0,9.86e-06]
[1644792860594,3.41963535,42377.0,42376.0,9.86e-06]
[1644792861588,3.66953535,42377.0,42376.0,9.86e-06]
[1644792861790,0.03686913,42364.0,42362.0,0.00098331]
[1644792861991,0.31808062,42363.0,42362.0,0.00098331]
[1644792862191,0.6529552,42363.0,42362.0,0.00098331]
[1644792862592,0.3213422,42363.0,42362.0,0.00098331]
[1644792864841,1.73399827,42363.0,42362.0,0.00098331]
[1644792865243,2.32299827,42363.0,42362.0,0.00098331]
[1644792865442,2.75461127,42363.0,42362.0,0.00098331]
[1644792865846,2.96881936,42363.0,42362.0,0.00098331]
[1644792866444,1.402,42361.0,42360.0,0.00050471]
[1644792866646,2.628783,42361.0,42360.0,0.00050471]
[1644792866894,2.93943907,42361.0,42360.0,0.00050471]
[1644792867600,2.93943907,42361.0,42360.0,0.24]
[1644792867796,3.15364716,42361.0,42360.0,0.24]
[1644792867996,3.24440716,42361.0,42358.0,0.00050472]
[1644792868197,2.322613,42359.0,42358.0,0.00050472]
[1644792868400,2.52878634,42359.0,42358.0,0.00050472]
[1644792868597,2.73944241,42359.0,42351.0,0.00928331]
[1644792868798,0.390687,42354.0,42351.0,0.00928331]
[1644792868999,0.331613,42352.0,42351.0,0.00928331]
[1644792869196,0.67550787,42352.0,42351.0,0.00928331]
[1644792870395,0.67550787,42352.0,42342.0,0.02711278]
[1644792870648,0.059078,42348.0,42342.0,0.01711278]
[1644792870846,0.6568626,42347.0,42342.0,0.01711278]
[1644792871052,0.0471,42346.0,42342.0,0.01711278]
[1644792871246,0.30846635,42345.0,42342.0,0.01711278]
[1644792871446,0.331613,42343.0,42342.0,0.01711278]
[1644792871648,0.0471,42344.0,42342.0,0.01711278]
[1644792872249,0.331626,42343.0,42342.0,0.01711278]
[1644792873657,0.106177,42344.0,42342.0,0.01711278]
[1644792873849,0.331626,42343.0,42342.0,0.01711278]
[1644792874048,0.449787,42343.0,42342.0,0.01711278]
[1644792874283,0.118161,42343.0,42342.0,0.01711278]
[1644792874684,0.449787,42343.0,42342.0,0.01711278]
[1644792874884,0.118161,42343.0,42342.0,0.01711278]
[1644792875084,0.72438611,42343.0,42342.0,0.01711278]
[1644792875488,0.77148611,42343.0,42342.0,0.01711278]
[1644792875888,0.93214218,42343.0,42342.0,0.01711278]
[1644792876192,0.43986011,42343.0,42342.0,0.01711278]
[1644792876387,0.48235518,42343.0,42342.0,0.01711278]
[1644792876586,0.378726,42343.0,42342.0,0.01711278]
[1644792876988,0.64845712,42343.0,42342.0,0.01734562]
[1644792877388,0.378726,42343.0,42342.0,0.01734562]
[1644792877588,0.64846645,42343.0,42342.0,0.01734562]
[1644792878237,0.378726,42343.0,42342.0,0.01734562]
[1644792878439,0.378726,42343.0,42342.0,0.25734562]
[1644792878638,0.378726,42343.0,42342.0,0.30734562]
[1644792879140,0.16114127,42345.0,42342.0,0.56920862]
[1644792879337,0.0004852,42345.0,42343.0,0.211857]
[1644792879538,0.0471,42350.0,42343.0,0.00023284]
[1644792879737,0.331626,42349.0,42342.0,0.30734562]
[1644792879936,0.0004852,42346.0,42342.0,0.30734562]
[1644792880637,0.0471,42348.0,42342.0,0.30734562]
[1644792881037,0.0004852,42346.0,42342.0,0.30734562]
[1644792881240,0.0471,42345.0,42342.0,0.30734562]
[1644792882888,0.106176,42345.0,42342.0,0.30734562]
[1644792883487,0.331626,42344.0,42342.0,0.30734562]
[1644792883691,0.0471,42343.0,42342.0,0.30734562]
[1644792883888,0.378726,42343.0,42342.0,0.30734562]
[1644792884389,0.65634445,42343.0,42342.0,0.30734562]
[1644792884589,0.65987527,42343.0,42342.0,0.30734562]
[1644792884992,0.71896427,42343.0,42342.0,0.25734562]
[1644792886238,0.71896427,42343.0,42342.0,0.30734562]